bitfinex-derivatives/quotes_BTCF0:USTF0_20210705
["timestamp","ask_amount","ask_price","bid_price","bid_amount"]
[1625497431338,0.35857544,33607.0,33606.0,0.00394055]
[1625497431422,1.90929714,33607.0,33606.0,0.00394055]
[1625497431617,1.90929714,33607.0,33601.0,0.00394061]
[1625497431915,2.92784267,33602.0,33601.0,0.00394061]
[1625497432214,2.98684267,33602.0,33601.0,0.00394061]
[1625497432916,3.22741811,33602.0,33601.0,0.00394061]
[1625497433819,4.60431794,33602.0,33601.0,0.00394061]
[1625497433918,4.66331794,33602.0,33601.0,0.00394061]
[1625497434818,4.60431794,33602.0,33601.0,0.00394061]
[1625497441383,4.54531794,33602.0,33601.0,0.00394061]
[1625497442735,4.60431794,33602.0,33601.0,0.00394061]
[1625497443135,3.22741811,33602.0,33601.0,0.00394061]
[1625497445091,3.22741811,33602.0,33601.0,0.09364061]
[1625497445191,3.16841811,33602.0,33601.0,0.09364061]
[1625497446394,0.24057544,33602.0,33601.0,0.09364061]
[1625497446897,1.96974962,33602.0,33601.0,0.09364061]
[1625497447453,1.96974962,33602.0,33601.0,0.00394061]
[1625497447799,1.96974962,33602.0,33601.0,5.18604061]
[1625497448348,1.96974962,33602.0,33601.0,0.00394061]
[1625497449051,1.96974962,33602.0,33601.0,0.24451605]
[1625497449253,1.96974962,33602.0,33601.0,0.30351605]
[1625497449452,1.96974962,33602.0,33601.0,0.31392271]
[1625497450103,0.93227969,33602.0,33601.0,0.31392271]
[1625497451058,0.24057544,33602.0,33601.0,0.31392271]
[1625497451859,0.93138485,33602.0,33601.0,0.31392271]
[1625497451959,0.93138485,33602.0,33601.0,0.30351605]
[1625497452162,0.93138485,33602.0,33601.0,0.31392305]
[1625497452509,0.93138485,33602.0,33601.0,0.30351605]
[1625497454669,1.44923414,33602.0,33601.0,0.30351605]
[1625497456821,1.75123414,33602.0,33601.0,0.30351605]
[1625497456920,1.81023414,33602.0,33601.0,0.3139239]
[1625497457019,1.81023414,33602.0,33601.0,0.2549239]
[1625497457119,1.81023414,33602.0,33601.0,0.24451605]
[1625497457220,4.05202377,33602.0,33601.0,0.24451605]
[1625497459823,4.05202377,33602.0,33601.0,0.24057544]
[1625497460073,4.05202377,33602.0,33601.0,0.24451705]
[1625497462030,5.4312004,33602.0,33601.0,0.24451705]
[1625497462331,5.4312004,33602.0,33601.0,0.33451705]
[1625497462431,5.4312004,33602.0,33601.0,0.24451705]
[1625497464085,0.60157544,33602.0,33601.0,0.24451705]
[1625497464237,0.29957544,33602.0,33601.0,0.24451705]
[1625497464437,5.12629526,33602.0,33601.0,0.24451705]
[1625497467247,5.3668707,33602.0,33601.0,0.00394161]
[1625497467646,5.3668707,33602.0,33597.0,0.00394238]
[1625497468299,5.3668707,33602.0,33597.0,0.06294238]
[1625497468300,2.24068603,33598.0,33597.0,0.06294238]
[1625497468752,1.20658952,33598.0,33597.0,0.06294238]
[1625497469152,2.24102195,33598.0,33597.0,0.06294238]
[1625497469302,2.48159739,33598.0,33597.0,0.00394238]
[1625497469651,2.54059739,33598.0,33597.0,0.00394238]
[1625497470303,2.54059739,33598.0,33597.0,0.06294238]
[1625497470804,2.54059739,33598.0,33597.0,0.15084238]
[1625497471204,2.54059739,33598.0,33597.0,0.06294238]
[1625497471456,2.54059739,33598.0,33597.0,0.00394238]
[1625497471907,6.99279739,33598.0,33597.0,0.00394238]
[1625497472859,8.19869659,33598.0,33597.0,0.00394238]
[1625497473410,9.57605721,33598.0,33597.0,0.00394238]
[1625497475213,5.12385721,33598.0,33597.0,0.00394238]
[1625497475414,5.12385721,33598.0,33596.0,0.24057544]
[1625497475715,5.12385721,33598.0,33597.0,0.00394292]
[1625497477320,5.18285721,33598.0,33597.0,0.00394292]
[1625497478230,5.18285721,33598.0,33597.0,0.21473292]
[1625497478334,5.12385721,33598.0,33597.0,0.21473292]
[1625497478418,5.12385721,33598.0,33597.0,0.27373292]
[1625497478567,2.48159739,33598.0,33597.0,0.27373292]
[1625497478918,2.48159739,33598.0,33597.0,0.21473292]
[1625497479119,2.54059739,33598.0,33597.0,0.21473292]
[1625497479221,2.54059739,33598.0,33597.0,0.27373292]
[1625497479321,2.54059739,33598.0,33597.0,0.21473292]
[1625497479873,3.74621338,33598.0,33597.0,0.21473292]
[1625497479972,3.74621338,33598.0,33597.0,0.00394292]
[1625497480123,3.74621338,33598.0,33597.0,0.06294292]
[1625497480773,3.68721338,33598.0,33597.0,0.06294292]
[1625497481329,2.48159739,33598.0,33597.0,0.06294292]
[1625497481426,2.48159739,33598.0,33597.0,0.28030292]
[1625497482477,2.48159739,33598.0,33597.0,0.06294292]
[1625497483129,2.48159739,33598.0,33597.0,0.33103292]
[1625497483429,0.24057544,33598.0,33597.0,0.33103292]
[1625497483629,0.24057544,33598.0,33597.0,0.34144387]
[1625497483880,1.44768816,33598.0,33597.0,0.34144387]
[1625497484485,1.72035816,33598.0,33597.0,0.07335387]
[1625497485134,1.72035816,33598.0,33597.0,0.06294292]
[1625497485335,1.72035816,33598.0,33597.0,0.30351836]
[1625497485535,2.75483514,33598.0,33597.0,0.30351836]
[1625497486191,2.75483514,33598.0,33597.0,0.24451836]
[1625497486439,3.96109965,33598.0,33597.0,0.24451836]
[1625497486940,3.96109965,33598.0,33597.0,0.30351836]
[1625497488090,4.02009965,33598.0,33597.0,0.30351836]
[1625497488308,4.02009965,33598.0,33597.0,0.24451836]
[1625497488550,2.81383514,33598.0,33597.0,0.24451836]
[1625497489040,5.39859405,33598.0,33597.0,0.24451836]
[1625497493402,5.45759405,33598.0,33597.0,0.24451836]
[1625497495364,7.0063841,33598.0,33597.0,0.24451836]
[1625497497560,5.45759405,33598.0,33597.0,0.24451836]
[1625497502919,5.39859405,33598.0,33597.0,0.24451836]
[1625497503227,5.33959405,33598.0,33597.0,0.49020836]
[1625497503331,5.12592405,33598.0,33597.0,0.49020836]
[1625497504323,3.74739745,33598.0,33597.0,0.49020836]
[1625497504423,3.74739745,33598.0,33597.0,0.57890836]
[1625497504523,3.74739745,33598.0,33597.0,0.49020836]
[1625497505227,3.50682201,33598.0,33597.0,0.49020836]
[1625497506982,2.3005897,33598.0,33597.0,0.49020836]
[1625497507930,2.2415897,33598.0,33597.0,0.49020836]
[1625497508281,1.20711272,33598.0,33597.0,0.49020836]
[1625497509583,2.24108177,33598.0,33597.0,0.49020836]
[1625497512137,3.44724916,33598.0,33597.0,0.49020836]
[1625497516244,2.24108177,33598.0,33597.0,0.49020836]
[1625497516646,3.44823419,33598.0,33597.0,0.49020836]
[1625497517498,3.44823419,33598.0,33597.0,0.50054101]
[1625497518750,2.24108177,33598.0,33597.0,0.50054101]
[1625497519350,2.24108177,33598.0,33597.0,0.55954101]
[1625497519449,2.24108177,33598.0,33597.0,0.54920836]
[1625497519551,2.24108177,33598.0,33597.0,0.60820836]
[1625497519656,1.36678177,33598.0,33597.0,0.8487838]
[1625497519753,1.36678177,33598.0,33597.0,0.85911402]
[1625497520004,1.36138177,33598.0,33597.0,0.85911402]
[1625497520200,0.17283915,33598.0,33597.0,2.44222661]
[1625497520500,0.17283915,33598.0,33597.0,2.45103741]
[1625497520804,0.17286103,33601.0,33597.0,3.8575485]
[1625497521056,0.17286103,33601.0,33598.0,0.01032395]
[1625497521157,0.51831616,33602.0,33600.0,2.98882547]
[1625497521254,0.51831616,33602.0,33601.0,0.10052377]
[1625497521457,0.51831616,33602.0,33601.0,3.14831383]
[1625497521584,0.51831616,33602.0,33601.0,3.20731383]
[1625497521655,0.51831616,33602.0,33601.0,3.45183882]
[1625497521756,0.06201616,33602.0,33601.0,3.45183882]
[1625497522005,0.1728188,33603.0,33601.0,3.45183882]
[1625497522305,0.1728188,33603.0,33602.0,0.01032303]
[1625497522407,0.1728188,33603.0,33602.0,3.05803245]
[1625497522505,0.1728188,33603.0,33602.0,3.06198187]
[1625497522606,0.1728188,33603.0,33602.0,3.12098187]
[1625497522808,1.03604958,33606.0,33602.0,3.12098187]
[1625497523056,1.03604958,33606.0,33603.0,0.01031722]
[1625497523157,0.94550299,33607.0,33605.0,1.40570464]
[1625497523257,0.94550299,33607.0,33605.0,1.69615464]
[1625497523355,0.94550299,33607.0,33605.0,1.81415464]
[1625497523457,1.2082356,33610.0,33606.0,1.40565592]
[1625497523557,1.2082356,33610.0,33606.0,1.47892036]
[1625497523661,1.2082356,33610.0,33609.0,0.72172632]
[1625497523760,1.20881437,33611.0,33609.0,6.64090861]
[1625497523858,1.20881437,33611.0,33609.0,6.75890861]
[1625497524059,1.38147748,33613.0,33609.0,6.75890861]
[1625497524060,1.20882686,33612.0,33609.0,6.75890861]
[1625497524158,1.20882686,33612.0,33610.0,0.00394877]
[1625497524362,0.42512686,33612.0,33611.0,0.01031365]
[1625497524467,1.21004824,33615.0,33611.0,1.41572406]
[1625497524665,0.97264824,33615.0,33611.0,1.53767223]
[1625497524768,0.73494824,33615.0,33611.0,1.53767223]
[1625497524861,0.72994824,33615.0,33612.0,0.01029314]
[1625497524964,0.72994824,33615.0,33612.0,0.32018138]
[1625497525063,0.72994824,33615.0,33612.0,0.37918138]
[1625497525161,1.55489959,33626.0,33612.0,1.95742134]
[1625497525262,1.55489959,33626.0,33613.0,0.01424104]
[1625497525364,1.55489959,33626.0,33613.0,0.57324104]
[1625497525463,1.55489959,33626.0,33614.0,0.0102929]
[1625497525560,1.55489959,33626.0,33614.0,0.0692929]
[1625497525660,1.55489959,33626.0,33625.0,1.26939176]
[1625497525761,1.55513262,33627.0,33625.0,1.32839176]
[1625497526264,1.55513262,33627.0,33626.0,4.6019]
[1625497526464,1.55502909,33628.0,33626.0,4.6019]
[1625497526564,1.61402909,33628.0,33626.0,4.6019]
[1625497526865,0.059,33628.0,33626.0,4.6019]
[1625497528769,1.61156395,33628.0,33626.0,4.6019]
[1625497529318,0.059,33628.0,33626.0,4.6019]
[1625497530475,0.118,33628.0,33626.0,4.6019]
[1625497531874,0.118,33628.0,33626.0,4.92455]
[1625497531981,1.66822041,33628.0,33626.0,4.92455]
[1625497532577,1.60922041,33628.0,33626.0,4.92455]
[1625497532780,0.059,33628.0,33626.0,4.92455]
[1625497539695,0.059,33628.0,33626.0,4.98355]
[1625497544209,0.08604139,33627.0,33626.0,4.98355]
[1625497545162,0.08604456,33628.0,33626.0,4.98355]
[1625497545362,0.14504456,33628.0,33626.0,4.98355]
[1625497546312,0.059,33628.0,33626.0,4.98355]
[1625497547417,0.14497593,33628.0,33626.0,4.98355]
[1625497547869,0.08602754,33627.0,33626.0,4.98355]
[1625497547968,0.36545754,33627.0,33626.0,4.6609]
[1625497548669,0.27943,33627.0,33626.0,4.6609]
[1625497551975,0.27943,33627.0,33626.0,4.66485338]
[1625497553530,1.32447272,33627.0,33626.0,4.66485338]
[1625497553630,1.04504272,33627.0,33626.0,4.66485338]
[1625497553832,1.06072664,33627.0,33626.0,4.66485338]
[1625497555586,2.27965084,33627.0,33626.0,4.66485338]
[1625497557091,1.06072664,33627.0,33626.0,4.72385338]
[1625497557188,1.06072664,33627.0,33626.0,4.95197338]
[1625497557289,1.04504272,33627.0,33626.0,4.95197338]
[1625497557593,1.04469016,33628.0,33626.0,4.95197338]
[1625497557791,1.04469016,33628.0,33627.0,0.00395307]
[1625497557890,1.04469016,33628.0,33627.0,0.06295307]
[1625497558096,1.06037284,33628.0,33627.0,0.06295307]
[1625497558391,1.04469016,33628.0,33627.0,0.12195307]
[1625497559142,0.08737185,33630.0,33627.0,0.12195307]
[1625497559441,0.08737185,33630.0,33627.0,0.13195307]
[1625497559542,0.087373,33631.0,33628.0,0.00395199]
[1625497559741,0.087373,33631.0,33628.0,0.12195199]
[1625497559942,0.087373,33631.0,33630.0,0.48115088]
[1625497560146,1.04623088,33633.0,33630.0,0.59915088]
[1625497560342,1.04623088,33633.0,33630.0,0.60310322]
[1625497560594,1.04623088,33633.0,33631.0,0.00395228]
[1625497560697,1.04579638,33632.0,33631.0,0.06295228]
[1625497560794,1.04579638,33632.0,33631.0,0.12195228]
[1625497561946,1.04579638,33632.0,33631.0,0.36252772]
[1625497562449,2.2657465,33632.0,33631.0,0.30352772]
[1625497562549,2.28142817,33632.0,33631.0,0.30352772]
[1625497562903,2.49159817,33632.0,33631.0,0.30352772]
[1625497563006,2.49159817,33632.0,33631.0,0.24452772]
[1625497563347,2.55059817,33632.0,33631.0,0.24452772]
[1625497563511,3.94237809,33632.0,33631.0,0.24452772]
[1625497563604,3.94237809,33632.0,33631.0,0.24057544]
[1625497563906,5.50754472,33632.0,33631.0,0.24057544]
[1625497564007,5.74812016,33632.0,33631.0,0.24057544]
[1625497565714,5.68912016,33632.0,33631.0,0.24057544]
[1625497565812,5.74812016,33632.0,33631.0,0.24057544]
[1625497568619,5.68912016,33632.0,33631.0,0.24057544]
[1625497568720,5.74812016,33632.0,33631.0,0.2445289]
[1625497569023,5.74812016,33632.0,33631.0,0.24057544]
[1625497569281,5.68912016,33632.0,33631.0,0.24057544]
[1625497569521,5.68912016,33632.0,33631.0,0.24452887]
[1625497570074,4.12395353,33632.0,33631.0,0.24452887]
[1625497571928,5.69131893,33632.0,33631.0,0.24452887]
[1625497573080,4.12395353,33632.0,33631.0,0.24452887]
[1625497573631,4.12395353,33632.0,33631.0,0.30352887]
[1625497573883,5.69247408,33632.0,33631.0,0.30352887]
[1625497574281,5.69247408,33632.0,33631.0,0.24452887]
[1625497575786,5.69247408,33632.0,33631.0,0.30352887]
[1625497575886,5.67679241,33632.0,33631.0,0.36252887]
[1625497575988,4.10827186,33632.0,33631.0,0.36252887]
[1625497576586,3.65752642,33632.0,33631.0,0.36252887]
[1625497576837,2.2657465,33632.0,33631.0,0.36252887]
[1625497577688,1.04579638,33632.0,33631.0,0.36252887]
[1625497578190,1.04579638,33632.0,33631.0,1.41455885]
[1625497579795,1.74560823,33632.0,33631.0,1.41455885]
[1625497580795,1.74560823,33632.0,33631.0,2.64198533]
[1625497581296,0.69981185,33632.0,33631.0,2.64198533]
[1625497582702,1.74985035,33632.0,33631.0,2.64198533]
[1625497584056,0.69981185,33632.0,33631.0,4.04523976]
[1625497584858,0.69992822,33633.0,33631.0,4.74660912]
[1625497585057,0.69992822,33633.0,33632.0,0.00395089]
[1625497585257,0.69992822,33633.0,33632.0,3.04382354]
[1625497585357,0.69992822,33633.0,33632.0,3.10282354]
[1625497585960,0.69992822,33633.0,33632.0,3.19112354]
[1625497586068,1.75000867,33634.0,33632.0,5.09383036]
[1625497586194,0.55240381,33634.0,33632.0,5.09383036]
[1625497586298,0.51140381,33634.0,33632.0,5.09383036]
[1625497586381,0.45170381,33634.0,33632.0,5.09383036]
[1625497586468,0.087726,33634.0,33633.0,3.69609671]
[1625497586559,0.077026,33634.0,33633.0,4.58734671]
[1625497586657,0.077026,33634.0,33633.0,4.64634671]
[1625497586658,0.032526,33634.0,33633.0,4.64634671]
[1625497586860,0.96501184,33637.0,33633.0,4.64634671]
[1625497586964,0.96501184,33637.0,33633.0,4.63606448]
[1625497587075,1.05064056,33640.0,33633.0,4.63606448]
[1625497587209,1.05064056,33640.0,33634.0,0.00395003]
[1625497587309,1.05064056,33640.0,33635.0,0.5]
[1625497587410,1.05064056,33640.0,33635.0,0.559]
[1625497587509,1.01974056,33640.0,33635.0,0.618]
[1625497587611,0.80714056,33640.0,33635.0,0.618]
[1625497587710,0.80714056,33640.0,33637.0,1.22630217]
[1625497587811,0.80714056,33640.0,33637.0,1.78530217]
[1625497587911,0.80714056,33640.0,33637.0,1.84430217]
[1625497588010,0.80714056,33640.0,33638.0,0.00395035]
[1625497588115,0.80714056,33640.0,33639.0,0.72172632]
[1625497588215,0.30654056,33640.0,33639.0,1.33972632]
[1625497588323,1.22632658,33646.0,33645.0,4.579]
[1625497588416,1.13732658,33646.0,33645.0,4.579]
[1625497588513,1.13732658,33646.0,33645.0,4.98814]
[1625497588716,1.40142403,33650.0,33645.0,4.98814]
[1625497588915,1.40142403,33650.0,33645.0,4.99209016]
[1625497589116,1.40142403,33650.0,33646.0,0.00394988]
[1625497589216,0.9275,33656.0,33646.0,0.06294988]
[1625497589217,1.39967029,33652.0,33646.0,0.06294988]
[1625497589317,1.39967029,33652.0,33646.0,0.12194988]
[1625497589416,1.39967029,33652.0,33646.0,0.618]
[1625497589666,1.39964927,33653.0,33646.0,0.618]
[1625497590067,1.39964927,33653.0,33652.0,0.72172632]
[1625497590168,1.39964927,33653.0,33652.0,1.04103632]
[1625497590270,1.39964927,33653.0,33652.0,1.15903632]
[1625497591021,1.39802331,33655.0,33652.0,1.15903632]
[1625497592072,1.39802331,33655.0,33652.0,1.39961176]
[1625497593476,2.32435475,33656.0,33652.0,1.39961176]
[1625497594879,0.9275,33656.0,33652.0,1.39961176]
[1625497595379,2.32339888,33656.0,33652.0,1.39961176]
[1625497596834,0.9275,33656.0,33652.0,1.39961176]
[1625497597385,0.9275,33656.0,33653.0,0.0883]
[1625497597487,0.9275,33656.0,33653.0,0.059]
[1625497597690,0.9275,33656.0,33653.0,0.118]
[1625497600151,0.9275,33656.0,33653.0,0.44568]
[1625497603961,1.26621,33656.0,33653.0,0.118]
[1625497607211,1.26621,33656.0,33653.0,0.2075]
[1625497607313,0.9275,33656.0,33653.0,0.2075]
[1625497608721,0.9275,33656.0,33654.0,0.00395295]
[1625497608818,0.9275,33656.0,33654.0,0.06295295]
[1625497608918,0.9275,33656.0,33654.0,0.12195295]
[1625497609216,0.9275,33656.0,33654.0,0.118]
[1625497613578,0.9275,33656.0,33655.0,0.003957]
[1625497613679,0.9275,33656.0,33655.0,0.062957]
[1625497613783,0.9275,33656.0,33655.0,0.121957]
[1625497618741,1.44980994,33656.0,33655.0,0.121957]
[1625497620397,1.44980994,33656.0,33655.0,0.062957]
[1625497620598,1.44980994,33656.0,33655.0,0.121957]
[1625497622705,1.44980994,33656.0,33655.0,0.062957]
[1625497624910,1.44980994,33656.0,33655.0,0.121957]
[1625497625009,1.44980994,33656.0,33655.0,0.062957]
[1625497625710,1.44980994,33656.0,33655.0,0.121957]
[1625497625862,1.44980994,33656.0,33655.0,0.062957]
[1625497626164,1.44980994,33656.0,33655.0,0.121957]
[1625497626763,0.9275,33656.0,33655.0,0.121957]
[1625497627513,0.9275,33656.0,33655.0,0.338207]
[1625497631968,0.9275,33656.0,33655.0,0.121957]
[1625497632570,1.45135641,33656.0,33655.0,0.121957]
[1625497633129,1.45135641,33656.0,33655.0,0.062957]
[1625497633522,1.77775641,33656.0,33655.0,0.062957]
[1625497633735,1.77775641,33656.0,33655.0,0.003957]
[1625497633824,1.85247088,33656.0,33655.0,0.003957]
[1625497634024,1.79347088,33656.0,33655.0,0.003957]
[1625497634124,1.79347088,33656.0,33653.0,0.00393976]
[1625497634425,4.04763677,33656.0,33653.0,0.00393976]
[1625497634825,2.79687464,33654.0,33653.0,0.00393976]
[1625497636889,4.21083178,33654.0,33653.0,0.00393976]
[1625497638443,4.19511678,33654.0,33653.0,0.00393976]
[1625497638996,4.21083229,33654.0,33653.0,0.00393976]
[1625497639448,5.78512384,33654.0,33653.0,0.00393976]
[1625497640597,5.76940833,33654.0,33653.0,0.00393976]
[1625497646408,5.82840833,33654.0,33653.0,0.00393976]
[1625497646508,5.76940833,33654.0,33653.0,0.00393976]
[1625497646609,5.82840833,33654.0,33653.0,0.00393976]
[1625497646712,6.47153611,33654.0,33653.0,0.00393976]
[1625497647011,6.53053611,33654.0,33653.0,0.00393976]
[1625497648164,6.54623244,33654.0,33652.0,0.96230176]
[1625497648313,6.54623244,33654.0,33652.0,1.02130176]
[1625497648415,6.49120385,33653.0,33652.0,1.02130176]
[1625497648565,6.55020385,33653.0,33652.0,1.02130176]
[1625497650617,6.49120385,33653.0,33652.0,1.02130176]
[1625497650817,6.55020385,33653.0,33652.0,1.02130176]
[1625497651518,6.49120385,33653.0,33652.0,1.02130176]
[1625497651619,6.55020385,33653.0,33652.0,1.02130176]
[1625497652018,6.49120385,33653.0,33652.0,1.02130176]
[1625497652118,6.55020385,33653.0,33652.0,1.02130176]
[1625497652217,6.49120385,33653.0,33652.0,1.02130176]
[1625497652818,6.49120385,33653.0,33652.0,1.0252488]
[1625497653120,6.49120385,33653.0,33652.0,1.02130176]
[1625497653371,6.49120385,33653.0,33652.0,1.02524868]
[1625497658340,6.49120385,33653.0,33652.0,1.08424868]
[1625497658537,6.49120385,33653.0,33652.0,1.02524868]
[1625497658738,6.49120385,33653.0,33652.0,1.7273483]
[1625497658837,6.49120385,33653.0,33652.0,1.8752483]
[1625497659187,6.49120385,33653.0,33652.0,1.7863483]
[1625497659787,4.91234297,33653.0,33652.0,2.83896136]
[1625497660289,4.91234297,33653.0,33652.0,4.06608351]
[1625497661043,3.50889158,33653.0,33652.0,5.4682902]
[1625497662342,2.28084969,33653.0,33652.0,5.4682902]
[1625497663944,2.28084969,33653.0,33652.0,5.47853513]
[1625497664895,2.28084969,33653.0,33652.0,5.4682902]
[1625497666500,1.2282173,33653.0,33652.0,5.4682902]
[1625497666951,2.2810804,33653.0,33652.0,5.4682902]
[1625497667453,2.2810804,33653.0,33652.0,4.50598844]
[1625497668155,1.2282173,33653.0,33652.0,4.50598844]
[1625497668504,1.2282173,33653.0,33652.0,4.74656388]
[1625497668606,1.2282173,33653.0,33652.0,5.4682902]
[1625497668706,2.25882185,33653.0,33652.0,5.4682902]
[1625497669859,1.2060173,33653.0,33652.0,5.4682902]
[1625497670608,2.25880439,33653.0,33652.0,5.4682902]
[1625497670960,1.2060173,33653.0,33652.0,5.4682902]
[1625497671259,0.9275,33656.0,33652.0,1.08424868]
[1625497671709,0.9275,33656.0,33653.0,0.00393538]
[1625497671810,0.9275,33656.0,33655.0,2.96852159]
[1625497672010,0.9275,33656.0,33655.0,3.08652159]
[1625497672261,0.9275,33656.0,33655.0,3.09045695]
[1625497672360,3.91012818,33656.0,33655.0,3.09045695]
[1625497673446,3.78842818,33656.0,33655.0,3.09045695]
[1625497673513,1.40341519,33658.0,33655.0,3.09045695]
[1625497673615,1.35921519,33658.0,33656.0,0.01018251]
[1625497673712,1.32761519,33658.0,33656.0,0.01018251]
[1625497673818,0.44670019,33658.0,33657.0,4.35437525]
[1625497673912,0.12340019,33658.0,33657.0,4.35437525]
[1625497674011,0.70144139,33660.0,33657.0,4.48255243]
[1625497674112,0.70144139,33660.0,33657.0,4.4864868]
[1625497674262,0.66594139,33660.0,33657.0,4.4864868]
[1625497674362,0.66594139,33660.0,33658.0,0.00393434]
[1625497674461,0.66094139,33660.0,33658.0,0.07310891]
[1625497674576,0.66094139,33660.0,33659.0,0.72172632]
[1625497674663,0.66094139,33660.0,33659.0,0.83972632]
[1625497674762,0.66094139,33660.0,33659.0,0.84990049]
[1625497674912,0.66094139,33660.0,33659.0,0.85383487]
[1625497675013,0.66094139,33660.0,33659.0,0.8436607]
[1625497675114,0.9766,33667.0,33659.0,0.8436607]
[1625497675411,0.9766,33667.0,33660.0,0.00393432]
[1625497675512,0.9766,33667.0,33660.0,0.12193432]
[1625497675963,0.9766,33667.0,33661.0,0.00393428]
[1625497676063,0.9766,33667.0,33666.0,4.1409]
[1625497676166,0.9766,33667.0,33666.0,4.45528]
[1625497676267,0.9766,33667.0,33666.0,4.51428]
[1625497676365,0.9766,33667.0,33666.0,4.57328]
[1625497676467,1.57796411,33669.0,33666.0,4.57328]
[1625497676567,1.57785841,33670.0,33668.0,0.72172632]
[1625497676818,1.57785841,33670.0,33668.0,0.83972632]
[1625497676919,1.57687328,33669.0,33668.0,0.83972632]
[1625497678072,1.57686133,33670.0,33668.0,0.83972632]
[1625497678472,1.57621326,33671.0,33668.0,0.83972632]
[1625497678675,1.57621326,33671.0,33670.0,0.24057544]
[1625497678773,1.57621326,33671.0,33670.0,0.29957544]
[1625497680979,1.57536698,33672.0,33670.0,0.29957544]
[1625497682028,1.57536698,33672.0,33670.0,0.35857544]
[1625497682129,1.45036698,33672.0,33670.0,0.35857544]
[1625497682230,1.45036698,33672.0,33670.0,0.29957544]
[1625497683736,2.04785816,33678.0,33670.0,0.29957544]
[1625497683834,1.99085816,33678.0,33670.0,0.29957544]
[1625497684086,2.04985816,33678.0,33670.0,0.29957544]
[1625497684486,1.99085816,33678.0,33670.0,0.29957544]
[1625497684687,1.99085816,33678.0,33677.0,0.48115088]
[1625497684787,1.99085816,33678.0,33677.0,5.39655088]
[1625497684989,2.00657871,33678.0,33677.0,5.39655088]
[1625497685188,2.06557871,33678.0,33677.0,5.39655088]
[1625497685289,1.99085816,33678.0,33677.0,5.39655088]
[1625497685995,0.24057544,33678.0,33677.0,5.39655088]
[1625497686092,0.29957544,33678.0,33677.0,5.39655088]
[1625497686643,0.3152954,33678.0,33677.0,5.39655088]
[1625497686745,0.2562954,33678.0,33677.0,5.39655088]
[1625497686844,0.24057544,33678.0,33677.0,5.39655088]
[1625497688452,0.256295,33678.0,33677.0,5.39655088]
[1625497688752,0.24057544,33678.0,33677.0,5.39655088]
[1625497689001,1.63903848,33678.0,33677.0,5.39655088]
[1625497689254,1.65475814,33678.0,33677.0,5.39655088]
[1625497691554,1.71375814,33678.0,33677.0,5.39655088]
[1625497691654,1.65475814,33678.0,33677.0,5.39655088]
[1625497693312,1.63903848,33678.0,33677.0,5.39655088]
[1625497693810,2.86194247,33678.0,33677.0,5.39655088]
[1625497694363,4.43384957,33678.0,33677.0,5.39655088]
[1625497694911,2.86194247,33678.0,33677.0,5.39655088]
[1625497695011,2.86194247,33678.0,33677.0,5.45555088]
[1625497697320,2.62136703,33678.0,33677.0,5.45555088]
[1625497699374,2.62136703,33678.0,33677.0,5.51455088]
[1625497699476,2.62136703,33678.0,33677.0,5.45555088]
[1625497699676,2.62136703,33678.0,33677.0,5.51455088]
[1625497700224,2.62136703,33678.0,33677.0,5.45555088]
[1625497702028,2.62136703,33678.0,33677.0,5.51455088]
[1625497702226,2.62136703,33678.0,33677.0,5.45555088]
[1625497702377,2.63707956,33678.0,33677.0,5.45948644]
[1625497703128,2.63707956,33678.0,33677.0,5.51848644]
[1625497703878,3.68425381,33678.0,33677.0,5.51848644]
[1625497704329,2.28579077,33678.0,33677.0,5.51848644]
[1625497704730,2.28579077,33678.0,33677.0,5.60628644]
[1625497704830,3.68189143,33678.0,33677.0,5.60628644]
[1625497704931,3.68189143,33678.0,33677.0,5.51848644]
[1625497705029,3.6661789,33678.0,33677.0,5.51848644]
[1625497705281,2.27007824,33678.0,33677.0,5.51848644]
[1625497705381,2.28579438,33678.0,33677.0,5.51848644]
[1625497705585,2.27007824,33678.0,33677.0,5.51848644]
[1625497705835,2.28579431,33678.0,33677.0,5.51848644]
[1625497706635,2.27007824,33678.0,33677.0,5.51848644]
[1625497708991,2.27007824,33678.0,33677.0,5.03733556]
[1625497709491,2.27007824,33678.0,33677.0,5.75906188]
[1625497711796,2.27007824,33678.0,33677.0,5.84706188]
[1625497712050,2.11767824,33678.0,33677.0,5.84706188]
[1625497712147,1.91437824,33678.0,33677.0,5.84706188]
[1625497712447,1.90917824,33678.0,33677.0,5.84706188]
[1625497712647,1.89147824,33678.0,33677.0,5.84706188]
[1625497712746,1.89147824,33678.0,33677.0,5.75906188]
[1625497713048,1.04750546,33680.0,33677.0,5.75906188]
[1625497713446,1.97701514,33681.0,33678.0,0.00393607]
[1625497713547,1.97701514,33681.0,33678.0,0.12193607]
[1625497713998,0.9294,33681.0,33679.0,0.0039361]
[1625497714099,0.9294,33681.0,33679.0,0.1219361]
[1625497714326,0.9294,33681.0,33679.0,0.0629361]
[1625497714400,1.97674217,33681.0,33679.0,0.0629361]
[1625497714525,1.04734217,33681.0,33679.0,0.0629361]
[1625497714598,1.04734217,33681.0,33680.0,0.00393636]
[1625497714700,1.04734217,33681.0,33680.0,0.06293636]
[1625497714799,1.62792599,33687.0,33680.0,0.06293636]
[1625497714800,1.39703759,33682.0,33680.0,0.06293636]
[1625497715202,1.04784506,33681.0,33680.0,0.06293636]
[1625497715302,1.04784506,33681.0,33680.0,0.059]
[1625497715504,1.04784506,33681.0,33680.0,0.06293645]
[1625497716059,1.04784506,33681.0,33680.0,0.12193645]
[1625497717107,1.04784506,33681.0,33680.0,0.21163645]
[1625497717309,1.04784506,33681.0,33680.0,0.12193645]
[1625497717661,1.04808927,33682.0,33680.0,0.12193645]
[1625497717761,1.04808927,33682.0,33680.0,0.37564645]
[1625497717959,1.04808927,33682.0,33681.0,0.00393566]
[1625497718162,1.04800116,33684.0,33681.0,0.12193566]
[1625497718510,1.04800116,33684.0,33682.0,0.00393577]
[1625497718612,1.39769298,33686.0,33682.0,0.12193577]
[1625497719010,1.39769298,33686.0,33683.0,0.00393566]
[1625497719109,1.39769298,33686.0,33683.0,0.06293566]
[1625497719210,1.39769298,33686.0,33683.0,0.12193566]
[1625497719511,1.39769298,33686.0,33684.0,0.00393571]
[1625497719610,1.39769298,33686.0,33685.0,0.72172632]
[1625497719711,1.39769298,33686.0,33685.0,0.78072632]
[1625497720013,2.44598682,33686.0,33685.0,0.78072632]
[1625497720362,2.44598682,33686.0,33685.0,0.83972632]
[1625497720562,2.44598682,33686.0,33685.0,0.78072632]
[1625497723270,1.04829384,33686.0,33685.0,0.78072632]
[1625497723817,2.44584497,33686.0,33685.0,0.78072632]
[1625497724973,1.04829384,33686.0,33685.0,0.78072632]
[1625497726323,2.44590775,33686.0,33685.0,0.78072632]
[1625497727173,2.44590775,33686.0,33685.0,0.83972632]
[1625497727274,2.44590775,33686.0,33685.0,0.84366148]
[1625497727374,1.04829384,33686.0,33685.0,0.84366148]
[1625497728025,1.04829384,33686.0,33685.0,0.78466148]
[1625497728125,1.04829384,33686.0,33685.0,0.78072632]